bitfinex-derivatives/quotes_SOLF0:USTF0_20250215
["timestamp","ask_amount","ask_price","bid_price","bid_amount"]
[1739621532132,1.6221,195.41,195.36,5.15083428]
[1739621532334,1.6221,195.41,195.36,0.03293428]
[1739621535936,6.7388,195.41,195.36,0.03293428]
[1739621536338,6.7388,195.41,195.37,9.05362966]
[1739621537336,1.6221,195.41,195.37,9.05362966]
[1739621543242,1.6221,195.41,195.36,5.15083428]
[1739621543243,5.1172,195.39,195.36,0.03293428]
[1739621543443,9.05362966,195.38,195.36,0.03293428]
[1739621544541,5.1177,195.37,195.36,0.03293428]
[1739621544748,9.05362966,195.38,195.31,9.05362966]
[1739621544941,4.8507,195.41,195.31,9.05362966]
[1739621544942,9.05362966,195.36,195.31,9.05362966]
[1739621545142,9.05362966,195.36,195.29,60.21957419]
[1739621545937,0.03767487,195.34,195.31,0.03492929]
[1739621546140,5.15617487,195.34,195.31,0.03492929]
[1739621546341,0.03767487,195.34,195.31,0.03492929]
[1739621546544,9.05362966,195.32,195.27,9.05362966]
[1739621546840,9.05362966,195.32,195.2,7.1507866]
[1739621546841,5.1196,195.3,195.25,9.05362966]
[1739621547546,9.05362966,195.32,195.25,9.05362966]
[1739621547747,9.05362966,195.32,195.26,0.03239939]
[1739621547947,0.03730683,195.29,195.26,0.03239939]
[1739621548844,0.03730683,195.29,195.27,9.05362966]
[1739621550049,0.03730683,195.29,195.27,14.17382966]
[1739621552640,0.03730683,195.29,195.28,5.12]
[1739621557146,200.05362966,195.4,195.27,10.61082966]
[1739621557451,191.0,195.4,195.35,9.05362966]
[1739621558249,0.03433523,195.39,195.36,0.03808654]
[1739621559156,0.03433523,195.39,195.37,9.05362966]
[1739621562751,0.03433523,195.39,195.37,14.17122966]
[1739621562951,0.03433523,195.39,195.37,9.05362966]
[1739621563154,0.03433523,195.39,195.36,0.03808654]
[1739621563856,5.15163523,195.39,195.36,0.03808654]
[1739621564061,9.05362966,195.38,195.36,0.03808654]
[1739621565251,5.1177,195.37,195.36,0.03808654]
[1739621565755,9.05362966,195.38,195.36,0.03808654]
[1739621565957,0.03433523,195.39,195.36,0.03808654]
[1739621567161,0.03433523,195.39,195.37,9.05362966]
[1739621567560,0.03433523,195.39,195.37,14.17132966]
[1739621571155,0.03433523,195.39,195.37,9.05362966]
[1739621572065,0.03433523,195.39,195.37,14.17122966]
[1739621573568,0.03433523,195.39,195.38,5.1174]
[1739621576267,0.03433523,195.39,195.37,14.17122966]
[1739621578068,0.03433523,195.39,195.38,5.1174]
[1739621579775,0.03433523,195.39,195.37,9.05362966]
[1739621580676,0.03433523,195.39,195.37,14.17102966]
[1739621581275,0.03433523,195.39,195.36,0.03808654]
[1739621586283,5.15163523,195.39,195.36,0.03808654]
[1739621586482,0.03433523,195.39,195.36,0.03808654]
[1739621586783,14.17102966,195.38,195.36,0.03808654]
[1739621587178,5.1177,195.37,195.36,0.03808654]
[1739621587481,9.05362966,195.38,195.29,9.05362966]
[1739621587682,9.05362966,195.35,195.29,9.05362966]
[1739621587884,9.05362966,195.33,195.27,9.05362966]
[1739621588478,0.03743796,195.32,195.28,0.0372689]
[1739621588887,5.15643796,195.32,195.28,0.0372689]
[1739621590085,9.05362966,195.31,195.28,0.0372689]
[1739621590785,5.1195,195.3,195.28,0.0372689]
[1739621591387,14.17342966,195.29,195.28,0.0372689]
[1739621591584,9.05362966,195.29,195.23,9.05362966]
[1739621591784,191.0,195.35,195.17,1.6305]
[1739621591785,9.05362966,195.27,195.21,9.05362966]
[1739621592688,0.03569913,195.26,195.21,14.17522966]
[1739621593386,0.03569913,195.26,195.21,9.05362966]
[1739621593583,9.05362966,195.25,195.19,9.05362966]
[1739621593987,14.17462966,195.25,195.19,14.17602966]
[1739621594387,9.05362966,195.25,195.19,9.05362966]
[1739621595291,9.05362966,195.25,195.19,14.17602966]
[1739621595682,9.05362966,195.25,195.19,9.05362966]
[1739621595888,5.1214,195.23,195.19,9.05362966]
[1739621596390,9.05362966,195.23,195.17,9.05362966]
[1739621596989,0.03519984,195.22,195.17,9.05362966]
[1739621597192,5.15689984,195.22,195.17,9.05362966]
[1739621597889,0.03519984,195.22,195.17,9.05362966]
[1739621598692,5.15679984,195.22,195.17,9.05362966]
[1739621599388,0.03519984,195.22,195.17,14.17632966]
[1739621599596,0.03519984,195.22,195.17,9.05362966]
[1739621599791,0.03519984,195.22,195.19,9.05362966]
[1739621599990,0.03519984,195.22,195.19,14.17582966]
[1739621600191,0.03519984,195.22,195.19,9.05362966]
[1739621600497,0.03519984,195.22,195.21,5.1219]
[1739621601693,0.03519984,195.22,195.21,14.17552966]
[1739621604793,13.81972966,195.31,195.24,5.121]
[1739621604990,13.81972966,195.31,195.26,9.05362966]
[1739621605601,17.43002966,195.31,195.26,9.05362966]
[1739621605995,0.03742758,195.3,195.27,0.03519984]
[1739621608695,5.15712758,195.3,195.27,0.03519984]
[1739621609495,5.12,195.28,195.27,0.03519984]
[1739621614306,5.12,195.28,195.22,14.17522966]
[1739621614307,5.1208,195.26,195.22,9.05362966]
[1739621614705,3.2569,195.31,195.11,11.8117]
[1739621614706,9.05362966,195.25,195.18,9.05362966]
[1739621615005,5.1213,195.24,195.18,14.17602966]
[1739621615396,0.036009,195.23,195.18,14.17602966]
[1739621615605,0.036009,195.23,195.18,9.05362966]
[1739621615807,0.036009,195.23,195.2,9.05362966]
[1739621616009,5.1209,195.25,195.2,9.05362966]
[1739621616204,0.0380156,195.23,195.2,9.05362966]
[1739621617209,0.0380156,195.23,195.2,14.17572966]
[1739621617607,0.0380156,195.23,195.2,9.05362966]
[1739621618811,0.0380156,195.23,195.2,14.17572966]
[1739621620106,0.0380156,195.23,195.22,9.05362966]
[1739621620312,9.05362966,195.29,195.22,14.17522966]
[1739621620610,0.03811918,195.24,195.22,9.05362966]
[1739621621814,0.03811918,195.24,195.22,14.17522966]
[1739621622511,0.03811918,195.24,195.22,9.05362966]
[1739621623312,0.03811918,195.24,195.2,9.05362966]
[1739621623516,0.03811918,195.24,195.18,9.05362966]
[1739621623711,9.05362966,195.23,195.16,9.05362966]
[1739621624013,5.122,195.21,195.16,9.05362966]
[1739621624208,9.08729972,195.23,195.18,9.05362966]
[1739621624909,14.20869972,195.23,195.18,9.05362966]
[1739621625312,9.08729972,195.23,195.18,9.05362966]
[1739621627011,9.05362966,195.21,195.16,9.05362966]
[1739621627417,5.1224,195.19,195.14,9.05362966]
[1739621627814,14.17602966,195.19,195.14,9.05362966]
[1739621628515,5.15591024,195.2,195.14,9.05362966]
[1739621628911,0.03371024,195.2,195.14,14.17732966]
[1739621630321,0.03371024,195.2,195.16,14.17662966]
[1739621630614,0.03371024,195.2,195.16,9.05362966]
[1739621630813,0.03371024,195.2,195.18,9.05362966]
[1739621631514,0.03371024,195.2,195.19,5.1224]
[1739621640828,12.31052966,195.31,195.24,5.1209]
[1739621641024,12.31052966,195.31,195.25,9.05362966]
[1739621642029,0.03879717,195.3,195.26,0.03371024]
[1739621642426,0.03879717,195.3,195.27,9.05362966]
[1739621643430,0.03879717,195.3,195.26,0.03371024]
[1739621646728,0.03879717,195.3,195.26,5.15431024]
[1739621646925,0.03879717,195.3,195.26,0.03371024]
[1739621647136,0.03879717,195.3,195.27,9.05362966]
[1739621647625,0.03879717,195.3,195.29,5.1198]
[1739621647831,0.03879717,195.3,195.27,9.05362966]
[1739621648331,0.03879717,195.3,195.26,0.03371024]
[1739621649728,5.15839717,195.3,195.26,0.03371024]
[1739621654336,0.03879717,195.3,195.26,5.15421024]
[1739621655137,0.03879717,195.3,195.26,0.03371024]
[1739621656239,0.03879717,195.3,195.26,5.15421024]
[1739621657241,0.03879717,195.3,195.26,0.03371024]
[1739621657738,5.15859717,195.3,195.26,0.03371024]
[1739621658739,5.1198,195.29,195.26,0.03371024]
[1739621659135,9.05362966,195.29,195.26,0.03371024]
[1739621660033,5.1201,195.28,195.26,0.03371024]
[1739621660237,9.05362966,195.27,195.26,0.03371024]
[1739621660636,14.17392966,195.27,195.26,0.03371024]
[1739621660839,9.05362966,195.27,195.2,5.1221]
[1739621661036,9.05362966,195.25,195.2,5.1221]
[1739621661437,14.17452966,195.25,195.2,5.1221]
[1739621661637,14.17452966,195.25,195.19,14.17602966]
[1739621661936,0.0391175,195.24,195.19,14.17602966]
[1739621664638,0.0391175,195.24,195.19,9.05362966]
[1739621664838,5.1214,195.23,195.19,9.05362966]
[1739621665042,14.17502966,195.23,195.17,9.05362966]
[1739621665240,9.05362966,195.23,195.17,9.05362966]
[1739621665441,0.03501978,195.22,195.17,9.05362966]
[1739621667244,0.03501978,195.22,195.19,14.17592966]
[1739621667744,0.03501978,195.22,195.19,9.05362966]
[1739621669848,0.03501978,195.22,195.19,14.17602966]
[1739621671247,0.03501978,195.22,195.2,5.1221]
[1739621671546,0.03501978,195.22,195.19,9.05362966]
[1739621672343,0.03501978,195.22,195.19,14.17582966]
[1739621672545,0.03501978,195.22,195.19,9.05362966]
[1739621672943,0.03501978,195.22,195.21,5.1219]
[1739621673949,0.03501978,195.22,195.2,5.1221]
[1739621674155,0.03501978,195.22,195.19,9.05362966]
[1739621674951,0.03501978,195.22,195.2,5.1221]
[1739621676452,0.03501978,195.22,195.19,14.17592966]
[1739621678949,0.03501978,195.22,195.19,9.05362966]
[1739621679155,0.03501978,195.22,195.2,5.1221]
[1739621680251,0.03501978,195.22,195.21,14.17552966]
[1739621681157,0.03501978,195.22,195.21,9.05362966]
[1739621682058,0.03501978,195.22,195.21,14.17552966]
[1739621684160,0.03501978,195.22,195.21,9.05362966]
[1739621684957,0.03501978,195.22,195.19,9.05362966]
[1739621685562,0.03501978,195.22,195.17,9.05362966]
[1739621686060,5.15671978,195.22,195.17,9.05362966]
[1739621686859,0.03501978,195.22,195.17,9.05362966]
[1739621687059,5.122,195.21,195.17,9.05362966]
[1739621687557,5.15671978,195.22,195.17,9.05362966]
[1739621687956,0.03501978,195.22,195.17,9.05362966]
[1739621688863,5.1219,195.21,195.17,9.05362966]
[1739621689257,5.1219,195.21,195.15,9.05362966]
[1739621689457,14.17552966,195.21,195.15,9.05362966]
[1739621689664,9.05362966,195.21,195.15,9.05362966]
[1739621689865,5.1221,195.2,195.15,9.05362966]
[1739621690062,9.05362966,195.21,195.13,10.60372966]
[1739621690863,5.1226,195.19,195.13,10.60372966]
[1739621691063,9.05362966,195.21,195.13,10.60372966]
[1739621691256,0.03300359,195.18,195.13,10.60372966]
[1739621691456,0.03300359,195.18,195.14,5.1237]
[1739621691970,0.03300359,195.18,195.15,9.05362966]
[1739621695168,0.03300359,195.18,195.13,14.17762966]
[1739621698770,5.1229,195.17,195.13,9.05362966]
[1739621699167,0.03300359,195.18,195.13,9.05362966]
[1739621700070,5.15570359,195.18,195.13,9.05362966]
[1739621700469,0.03300359,195.18,195.13,14.17762966]
[1739621702573,0.03300359,195.18,195.14,5.1236]
[1739621704270,0.03300359,195.18,195.13,14.17752966]
[1739621704466,0.03300359,195.18,195.13,9.05362966]
[1739621704972,0.03300359,195.18,195.14,5.1237]
[1739621705674,0.03300359,195.18,195.13,14.17752966]
[1739621706369,0.03300359,195.18,195.14,5.1237]
[1739621707873,0.03300359,195.18,195.13,14.17752966]
[1739621708074,5.15580359,195.18,195.13,9.05362966]
[1739621709678,0.03300359,195.18,195.13,14.17742966]
[1739621710179,0.03300359,195.18,195.13,9.05362966]
[1739621710478,0.03300359,195.18,195.14,5.1236]
[1739621711075,0.03300359,195.18,195.15,5.1234]
[1739621711279,0.03300359,195.18,195.15,14.17702966]
[1739621711982,0.03300359,195.18,195.17,14.17652966]
[1739621713877,0.03300359,195.18,195.17,9.05362966]
[1739621715178,0.03300359,195.18,195.17,14.17652966]
[1739621715684,0.03300359,195.18,195.17,9.05362966]
[1739621717092,0.03300359,195.18,195.17,14.17652966]
[1739621717581,0.03300359,195.18,195.17,9.05362966]
[1739621719189,0.03300359,195.18,195.17,14.17652966]
[1739621719884,0.03300359,195.18,195.17,9.05362966]
[1739621720883,0.03300359,195.18,195.17,14.17652966]
[1739621723488,0.03300359,195.18,195.17,9.05362966]
[1739621723786,0.03300359,195.18,195.15,9.05362966]
[1739621725382,0.03300359,195.18,195.13,9.05362966]
[1739621726081,0.03300359,195.18,195.07,1.6378]
[1739621726082,9.05362966,195.15,195.09,9.05362966]
[1739621726279,9.05362966,195.13,195.07,9.05362966]
[1739621726681,5.15897141,195.12,195.07,9.05362966]
[1739621727483,0.03467141,195.12,195.07,9.05362966]
[1739621728383,0.03467141,195.12,195.07,14.17912966]
[1739621728585,0.03467141,195.12,195.09,9.05362966]
[1739621729580,0.03467141,195.12,195.07,9.05362966]
[1739621729987,9.05362966,195.11,195.06,51.22789025]
[1739621730788,9.05362966,195.11,195.05,14.17952966]
[1739621731287,9.05362966,195.11,195.01,1.6376]
[1739621731288,9.05362966,195.09,195.04,5.1263]
[1739621731681,0.03251635,195.08,195.04,5.1263]
[1739621732187,0.03251635,195.08,195.05,14.17942966]
[1739621732386,0.03251635,195.08,195.07,9.05362966]
[1739621733192,0.03251635,195.08,195.07,14.17922966]
[1739621737691,0.03251635,195.08,195.07,9.05362966]
[1739621739891,0.03251635,195.08,195.05,9.05362966]
[1739621741197,0.03251635,195.08,195.05,14.17952966]
[1739621742396,0.03251635,195.08,195.06,5.1257]
[1739621743396,0.03251635,195.08,195.05,9.05362966]
[1739621743788,0.03251635,195.08,195.03,14.18022966]
[1739621744287,0.03251635,195.08,195.03,9.05362966]
[1739621744496,5.15791635,195.08,195.03,9.05362966]
[1739621745593,5.1256,195.07,195.03,9.05362966]
[1739621745888,9.05362966,195.05,194.99,9.05362966]
[1739621746496,0.03284202,195.04,194.99,9.05362966]
[1739621747597,0.03284202,195.04,195.01,5.127]
[1739621747989,0.03284202,195.04,195.03,9.05362966]
[1739621748697,0.03284202,195.04,195.01,14.18072966]
[1739621748897,0.03284202,195.04,195.01,9.05362966]
[1739621749100,0.03284202,195.04,195.02,5.1268]
[1739621749300,0.03284202,195.04,195.03,9.05362966]
[1739621749996,0.03284202,195.04,195.03,14.18022966]
[1739621750200,0.03284202,195.04,195.03,9.05362966]
[1739621750596,0.03284202,195.04,195.02,5.1268]
[1739621750796,0.03284202,195.04,195.01,9.05362966]
[1739621751501,0.03284202,195.04,195.01,14.18072966]
[1739621753602,0.03284202,195.04,195.01,9.05362966]
[1739621754001,0.03284202,195.04,195.02,5.1269]
[1739621755199,0.03284202,195.04,195.03,5.1266]
[1739621755401,0.03284202,195.04,195.03,14.18022966]
[1739621756204,0.03284202,195.04,195.03,9.05362966]
[1739621758807,0.03284202,195.04,195.03,14.18022966]
[1739621760903,0.03284202,195.04,195.01,9.05362966]
[1739621761094,0.03284202,195.04,195.02,5.1268]
[1739621762405,0.03284202,195.04,195.01,9.05362966]
[1739621763300,0.03284202,195.04,195.02,5.1267]
[1739621763704,0.03284202,195.04,195.01,9.05362966]
[1739621763905,0.03284202,195.04,195.03,9.05362966]
[1739621764907,0.03284202,195.04,195.03,14.18022966]
[1739621766406,0.03284202,195.04,195.03,9.05362966]
[1739621767713,0.03284202,195.04,195.03,14.18022966]
[1739621768013,9.05362966,195.13,195.03,9.05362966]
[1739621768210,5.1243,195.12,195.07,9.05362966]
[1739621768410,9.05362966,195.13,195.06,5.1258]
[1739621768711,5.1247,195.11,195.05,14.17962966]
[1739621769106,0.0337301,195.1,195.06,0.03284202]
[1739621769914,5.1585301,195.1,195.06,0.03284202]
[1739621770510,5.1253,195.08,195.06,0.03284202]
[1739621770911,9.05362966,195.07,195.01,9.05362966]
[1739621771313,14.17922966,195.07,195.01,14.18062966]
[1739621771714,9.05362966,195.07,195.01,14.18062966]
[1739621772014,0.03319215,195.06,195.01,14.18062966]
[1739621772510,0.03319215,195.06,195.02,5.1268]
[1739621772711,0.03319215,195.06,195.03,9.05362966]
[1739621773113,0.03319215,195.06,195.03,14.18012966]
[1739621774109,0.03319215,195.06,195.05,14.17972966]
[1739621774919,9.05362966,195.15,195.05,9.05362966]
[1739621775113,9.05362966,195.15,194.97,1.5094]
[1739621775114,9.05362966,195.15,195.1,9.05362966]
[1739621775515,14.17712966,195.15,195.08,9.05362966]
[1739621775716,9.05362966,195.13,195.08,9.05362966]
[1739621775917,9.05362966,195.13,195.06,9.05362966]
[1739621776113,9.05362966,195.11,195.09,0.03319214]
[1739621776317,9.05362966,195.11,195.04,9.05362966]
[1739621776517,9.05362966,195.11,195.08,0.03302065]
[1739621776818,5.1248,195.1,195.08,0.03302065]
[1739621777421,5.125,195.09,195.08,0.03302065]
[1739621777620,14.17862966,195.09,195.08,0.03302065]
[1739621782421,5.1259,195.06,195.0,9.05362966]
[1739621782623,9.05362966,195.06,195.0,9.05362966]
[1739621783021,5.1274,195.0,194.94,9.05362966]
[1739621783223,14.18102966,195.0,194.94,9.05362966]
[1739621783722,0.03833621,194.99,194.94,9.05362966]
[1739621784324,5.16603621,194.99,194.94,9.05362966]
[1739621784624,0.03833621,194.99,194.94,9.05362966]
[1739621785620,0.03833621,194.99,194.94,14.18262966]
[1739621785822,0.03833621,194.99,194.96,9.05362966]
[1739621788223,0.03833621,194.99,194.96,14.18202966]
[1739621789022,0.03833621,194.99,194.96,9.05362966]
[1739621789323,0.03833621,194.99,194.94,9.05362966]
[1739621790021,0.03833621,194.99,194.94,14.18252966]
[1739621790324,0.03833621,194.99,194.94,9.05362966]
[1739621790626,0.03833621,194.99,194.95,5.1287]
[1739621793328,0.03833621,194.99,194.96,9.05362966]
[1739621793827,0.03833621,194.99,194.97,5.128]
[1739621794423,0.03833621,194.99,194.98,9.05362966]
[1739621794627,10.65692966,195.1,194.98,9.05362966]
[1739621794827,9.05362966,195.1,195.04,9.05362966]
[1739621795528,192.5866,195.11,195.04,9.05362966]
[1739621795724,0.03352283,195.09,195.06,9.05362966]
[1739621796229,0.03295668,195.09,195.06,9.08797983]
[1739621797628,0.03295668,195.09,195.06,0.03435017]
[1739621800831,0.03295668,195.09,195.07,5.1253]
[1739621801030,0.03295668,195.09,195.06,0.03435017]
[1739621802025,0.03295668,195.09,195.08,5.1253]
[1739621807334,191.0,195.17,195.12,5.1242]
[1739621807530,3.1893,195.18,195.08,14.18837568]
[1739621808334,8.312,195.18,195.11,5.1243]
[1739621808534,0.03890749,195.15,195.11,5.16135361]
[1739621811131,0.03890749,195.15,195.11,0.03705361]
[1739621812238,0.03890749,195.15,195.11,5.16145361]
[1739621812838,0.03890749,195.15,195.12,5.1242]
[1739621816338,0.03890749,195.15,195.14,5.1237]
[1739621816937,0.03890749,195.15,195.13,5.1239]
[1739621817739,0.03890749,195.15,195.13,14.1974207]
[1739621818639,0.03890749,195.15,195.13,9.0735207]
[1739621819334,0.03890749,195.15,195.13,14.1975207]
[1739621822645,0.03890749,195.15,195.11,9.11057431]
[1739621823245,0.03890749,195.15,195.12,5.1242]
[1739621823638,0.03890749,195.15,195.11,9.11057431]
[1739621823835,0.03890749,195.15,195.11,14.23487431]
[1739621824642,0.03890749,195.15,195.12,5.1242]
[1739621831645,5.1237,195.14,195.11,0.03705361]
[1739621831844,9.0735207,195.13,195.11,0.03705361]
[1739621833345,0.03890749,195.15,195.11,9.11057431]
[1739621834048,0.03890749,195.15,195.13,9.0735207]
[1739621834650,0.03890749,195.15,195.14,5.1237]
[1739621836349,3.1877,195.23,195.13,9.0735207]
[1739621836552,9.0735207,195.27,195.21,9.0735207]
[1739621836947,200.0735207,195.29,195.23,9.0735207]
[1739621837548,0.03630191,195.28,195.24,0.03413239]
[1739621839451,0.03630191,195.28,195.25,9.0735207]
[1739621843058,0.03630191,195.28,195.24,0.03413239]
[1739621845360,0.03630191,195.28,195.25,9.0735207]
[1739621847862,9.0735207,195.27,195.24,0.03413239]
[1739621848463,5.1208,195.25,195.24,0.03413239]
[1739621849766,9.0735207,195.25,195.17,9.0735207]
[1739621849963,9.0735207,195.23,195.17,9.0735207]
[1739621850867,9.0735207,195.21,195.15,9.0735207]
[1739621851067,9.0735207,195.21,195.18,0.0344399]
[1739621851765,0.03854193,195.22,195.18,0.0344399]
[1739621851957,0.03854193,195.22,195.19,9.0735207]
[1739621852361,0.03854193,195.22,195.2,5.1221]
[1739621852663,0.03854193,195.22,195.19,9.0735207]
[1739621857264,0.03854193,195.22,195.18,0.0344399]
[1739621860976,5.16024193,195.22,195.18,0.0344399]
[1739621863379,0.03854193,195.22,195.18,5.1571399]
[1739621863576,0.03854193,195.22,195.19,9.0735207]
[1739621866875,5.16014193,195.22,195.19,9.0735207]
[1739621867379,0.03854193,195.22,195.19,9.0735207]
[1739621869879,0.03854193,195.22,195.21,9.0735207]
[1739621874672,0.03854193,195.22,195.21,14.1954207]
[1739621877779,0.03854193,195.22,195.21,9.0735207]
[1739621877983,0.03854193,195.22,195.2,0.0374786]
[1739621879282,0.03854193,195.22,195.18,9.0735207]
[1739621879584,5.1216,195.23,195.18,9.0735207]
[1739621880582,0.03862538,195.22,195.18,9.0735207]
[1739621881184,0.03862538,195.22,195.2,9.0735207]
[1739621882983,0.03862538,195.22,195.18,14.1962207]
[1739621884487,0.03862538,195.22,195.2,9.0735207]
[1739621884683,9.0735207,195.27,195.2,9.0735207]
[1739621884882,0.03532573,195.23,195.22,9.0735207]
[1739621885786,0.03532573,195.23,195.2,14.1956207]
[1739621889192,0.03532573,195.23,195.2,9.0735207]
[1739621889388,0.03532573,195.23,195.21,5.1218]
[1739621889886,0.03532573,195.23,195.2,14.1954207]
[1739621892588,0.03532573,195.23,195.21,5.1218]
[1739621894987,0.03532573,195.23,195.2,9.0735207]
[1739621895194,0.03532573,195.23,195.2,14.1956207]
[1739621895887,0.03532573,195.23,195.22,5.1216]
[1739621896494,0.03532573,195.23,195.22,14.1951207]
[1739621900589,0.03532573,195.23,195.22,9.0735207]
[1739621900989,0.03532573,195.23,195.22,14.1951207]
[1739621901392,10.6635207,195.35,195.22,9.0735207]
[1739621901697,12.2022207,195.37,195.31,9.0735207]
[1739621902198,5.1184,195.35,195.31,9.0735207]
[1739621902594,0.03523919,195.35,195.31,9.10666468]
[1739621904297,0.03523919,195.35,195.33,9.0735207]
[1739621911908,9.10875989,195.35,195.31,0.03314398]
[1739621912401,5.119,195.32,195.31,0.03314398]
[1739621912805,5.1185,195.34,195.31,0.03314398]
[1739621913607,9.10875989,195.35,195.31,0.03314398]
[1739621914008,5.1185,195.34,195.31,0.03314398]
[1739621914811,5.1188,195.33,195.31,0.03314398]
[1739621916107,9.10875989,195.35,195.31,0.03314398]
[1739621916812,5.1198,195.29,195.25,9.0735207]
[1739621917612,5.1195,195.3,195.25,9.0735207]
[1739621917807,0.03815443,195.29,195.25,9.0735207]
[1739621919414,0.03815443,195.29,195.27,9.0735207]
[1739621926917,0.03815443,195.29,195.28,5.12]
[1739621928619,0.03815443,195.29,195.27,14.1938207]
[1739621931519,0.03815443,195.29,195.28,5.12]
[1739621932620,0.03815443,195.29,195.27,9.0735207]
[1739621932621,0.03815443,195.29,195.27,14.1938207]
[1739621933221,0.03815443,195.29,195.28,5.12]
[1739621934518,9.0735207,195.38,195.27,9.0735207]
[1739621934722,9.0735207,195.38,195.32,9.0735207]
[1739621935822,0.03703854,195.37,195.33,0.03673473]
[1739621939830,5.15493854,195.37,195.33,0.03673473]
[1739621941027,0.03703854,195.37,195.33,0.03673473]
[1739621941828,0.03703854,195.37,195.34,9.0735207]
[1739621942228,0.03703854,195.37,195.36,5.1179]
[1739621942527,0.03703854,195.37,195.36,14.1914207]
[1739621945824,0.03703854,195.37,195.36,9.0735207]
[1739621947632,0.03703854,195.37,195.34,9.0735207]
[1739621948334,0.03703854,195.37,195.33,0.03673473]
[1739621949434,5.15483854,195.37,195.33,0.03673473]
[1739621950030,0.03703854,195.37,195.33,0.03673473]
[1739621951426,9.0735207,195.36,195.33,0.03673473]
[1739621952030,5.1182,195.35,195.33,0.03673473]
[1739621953239,9.0735207,195.34,195.28,9.0735207]
[1739621954338,0.03367275,195.33,195.28,9.0735207]
[1739621954634,0.03367275,195.33,195.29,5.1198]
[1739621957525,0.03367275,195.33,195.28,9.0735207]
[1739621957725,0.03367275,195.33,195.32,14.1925207]
[1739621957936,1.5414,195.36,195.32,14.1925207]
[1739621957937,5.1174,195.39,195.32,9.0735207]
[1739621958136,5.1174,195.39,195.34,9.0735207]
[1739621958335,0.03450843,195.37,195.34,9.0735207]
[1739621962039,0.03450843,195.37,195.32,9.0735207]
[1739621962237,5.1174,195.38,195.32,9.0735207]
[1739621962539,0.03771801,195.36,195.21,10.2437]
[1739621962732,52.65982275,195.45,195.22,1.96495662]
[1739621962938,57.77542275,195.45,195.38,5.1172]
[1739621963139,14.1891207,195.45,195.23,11.26693272]
[1739621963341,1.5096,195.46,195.24,1.96472049]
[1739621963533,1.5096,195.46,195.4,9.0735207]
[1739621963934,0.0388914,195.45,195.41,0.03448815]
[1739621964135,5.1544914,195.45,195.41,0.03448815]
[1739621964435,0.0388914,195.45,195.41,0.03448815]
[1739621965331,5.1544914,195.45,195.41,0.03448815]
[1739621965638,0.0388914,195.45,195.41,0.03448815]
[1739621966339,0.0388914,195.45,195.42,9.0735207]
[1739621966741,0.0388914,195.45,195.42,14.1898207]
[1739621969040,5.1545914,195.45,195.41,0.03448815]
[1739621970140,9.0735207,195.44,195.41,0.03448815]
[1739621970338,9.0735207,195.42,195.41,0.03448815]
[1739621971640,9.0735207,195.42,195.36,9.0735207]
[1739621972542,5.1169,195.41,195.36,9.0735207]
[1739621972943,0.03391816,195.4,195.36,9.0735207]
[1739621974546,0.03391816,195.4,195.38,9.0735207]
[1739621974740,200.0735207,195.46,195.38,9.0735207]
[1739621974944,0.03739209,195.41,195.4,9.0735207]
[1739621975144,9.0735207,195.46,195.4,9.0735207]
[1739621975348,0.03856678,195.42,195.4,9.0735207]
[1739621976138,0.03856678,195.42,195.4,14.1904207]
[1739621979349,0.03856678,195.42,195.41,5.1166]
[1739621979544,9.0735207,195.52,195.4,9.0735207]
[1739621979748,9.0735207,195.52,195.47,9.0735207]
[1739621980752,0.03652165,195.51,195.48,0.03305457]
[1739621983956,5.1145,195.49,195.48,0.03305457]
[1739621984162,9.0735207,195.5,195.43,9.0735207]
[1739621984560,9.0735207,195.5,195.43,14.1896207]
[1739621984561,5.115,195.48,195.43,14.1896207]
[1739621984759,9.0735207,195.5,195.43,9.0735207]
[1739621985159,5.1153,195.47,195.43,9.0735207]
[1739621985365,9.0735207,195.46,195.41,9.0735207]
[1739621985666,0.03483037,195.45,195.39,9.0735207]
[1739621985966,5.1159,195.44,195.39,9.0735207]
[1739621986169,5.15302186,195.44,195.39,9.0735207]
[1739621986961,5.1164,195.42,195.37,9.0735207]
[1739621987468,0.03824642,195.41,195.37,9.0735207]
[1739621988358,0.03824642,195.41,195.37,14.1911207]
[1739621988562,0.03824642,195.41,195.39,9.0735207]
[1739621991869,0.03824642,195.41,195.4,5.1169]
[1739621993568,191.0,195.53,195.46,5.1153]
[1739621993772,1.6076,195.54,195.51,9.0735207]
[1739621994674,1.6441158,195.54,195.51,9.10660108]
[1739621995376,0.0365158,195.54,195.51,9.10660108]
[1739621996374,0.0365158,195.54,195.51,14.22060108]
[1739621996874,0.0365158,195.54,195.51,9.10660108]
[1739622000282,0.0365158,195.54,195.51,14.22060108]
[1739622002186,0.0365158,195.54,195.53,9.0735207]
[1739622003684,5.1122,195.59,195.53,9.0735207]
[1739622003885,5.1122,195.59,195.56,9.0735207]
[1739622004086,9.0735207,195.62,195.56,9.0735207]
[1739622004789,0.03845692,195.61,195.57,0.03313259]
[1739622005185,5.1122,195.59,195.57,0.03313259]